[Event "Nakhchivan Premium 2021"]
[Site "Nakhchivan"]
[Date "2021.03.27"]
[Round "6.3"]
[White "Seyid, Huseyn"]
[Black "Aliyev, Aykhan"]
[Result "0-1"]
[ECO "B38"]
[WhiteElo "1660"]
[BlackElo "1683"]
[Annotator "NA RC"]
[PlyCount "106"]
[EventDate "2021.03.14"]
[EventType "tourn"]
[EventCountry "AZE"]
[SourceTitle "playchess.com"]
[Source "ChessBase"]
[SourceQuality "1"]
[TimeControl "5400+30"]

1. e4 {[%emt 0:00:00]} c5 {[%emt 0:00:00]} 2. Nf3 {[%emt 0:00:00]} Nc6 {[%emt 0:00:00]} 3. d4 {[%emt 0:00:00]} cxd4 {[%emt 0:00:00]} 4. Nxd4 {[%emt 0:00:00]} g6 {[%emt 0:00:00]} 5. c4 {[%emt 0:00:00]} Bg7 {[%emt 0:00:02]} 6. Be3 {[%emt 0:00:00]} Qb6 {[%emt 0:00:07]} 7. Nb3 {[%emt 0:10:43]} Qc7 {[%emt 0:00:08]} 8. Nc3 {[%emt 0:00:28]} Bxc3+ {[%emt 0:00:17]} 9. bxc3 {[%emt 0:00:02]} Nf6 {[%emt 0:00:09]} 10. f3 {[%emt 0:00:36]} d6 {[%emt 0:01:29]} 11. Be2 {[%emt 0:02:50]} b6 {[%emt 0:00:10]} 12. O-O {[%emt 0:05:45]} O-O {[%emt 0:00:39]} 13. Nd4 {[%emt 0:08:17]} Ne5 {[%emt 0:02:58]} 14. Nb5 {[%emt 0:02:31]} Qc6 {[%emt 0:00:57]} 15. Qb3 {[%emt 0:15:58]} Be6 {[%emt 0:03:28]} 16. Nd4 {[%emt 0:02:02]} Qc5 {[%emt 0:00:19]} 17. Bf2 {[%emt 0:01:55]} Bxc4 {[%emt 0:00:44]} 18. Bxc4 {[%emt 0:02:24]} Qxc4 {[%emt 0:00:08]} 19. f4 {[%emt 0:02:20]} Qxb3 {[%emt 0:01:48]} 20. axb3 {[%emt 0:00:01]} Nd3 {[%emt 0:00:11]} 21. e5 {[%emt 0:02:13]} dxe5 {[%emt 0:02:56]} 22. fxe5 {[%emt 0:00:16]} Nxe5 {[%emt 0:00:52]} 23. Rfe1 {[%emt 0:00:56]} Nfd7 {[%emt 0:01:26]} 24. Bg3 {[%emt 0:05:24]} f6 {[%emt 0:00:13]} 25. Bxe5 {[%emt 0:00:29]} Nxe5 {[%emt 0:00:12]} 26. Nf3 {[%emt 0:00:34]} Nxf3+ {[%emt 0:00:09]} 27. gxf3 {[%emt 0:00:01]} e5 {[%emt 0:00:27]} 28. Red1 {[%emt 0:00:26]} Rf7 {[%emt 0:07:11]} 29. c4 {[%emt 0:02:08]} Rb7 {[%emt 0:06:13]} 30. Rd6 {[%emt 0:00:12]} Kf7 {[%emt 0:00:08]} 31. Rad1 {[%emt 0:01:11]} Re8 {[%emt 0:03:17]} 32. Kf2 {[%emt 0:03:15]} e4 {[%emt 0:01:57]} 33. Re1 {[%emt 0:03:35]} Rbe7 {[%emt 0:00:11]} 34. fxe4 {[%emt 0:00:36]} Rxe4 {[%emt 0:00:11]} 35. Rd7+ {[%emt 0:01:20]} R4e7 {[%emt 0:00:08]} 36. Rexe7+ {[%emt 0:00:50]} Rxe7 {[%emt 0:00:06]} 37. Rd6 {[%emt 0:00:37]} g5 {[%emt 0:02:58]} 38. Kf3 {[%emt 0:02:18]} Kg6 {[%emt 0:00:21]} 39. Rd5 {[%emt 0:00:35]} Re1 {[%emt 0:02:06]} 40. Rd7 {[%emt 0:00:00]} Rc1 {[%emt 0:00:00]} 41. Rxa7 {[%emt 0:00:00]} Rc3+ {[%emt 0:00:00]} 42. Kg2 {[%emt 0:00:00]} Rxb3 {[%emt 0:00:00]} 43. Rc7 {[%emt 0:00:00]} h5 {[%emt 0:00:00]} 44. c5 {[%emt 0:00:00]} Rb2+ {[%emt 0:00:00]} 45. Kg1 {[%emt 0:00:00]} bxc5 {[%emt 0:00:00]} 46. Rxc5 {[%emt 0:00:00]} g4 {[%emt 0:00:00]} 47. Rc3 {[%emt 0:00:00]} Kg5 {[%emt 0:00:00]} 48. h3 {[%emt 0:00:00]} f5 {[%emt 0:00:00]} 49. hxg4 {[%emt 0:00:00]} hxg4 {[%emt 0:00:00]} 50. Rc5 {[%emt 0:00:00]} g3 {[%emt 0:00:00]} 51. Rc3 {[%emt 0:00:00]} Kg4 {[%emt 0:00:00]} 52. Rc4+ {[%emt 0:00:00]} f4 {[%emt 0:00:00]} 53. Rc8 {[%emt 0:00:00]} Rb1+ {[%emt 0:00:00]} 0-1

[Event "Nakhchivan Premium 2021"]
[Site "Nakhchivan"]
[Date "2021.03.28"]
[Round "7.2"]
[White "Hasanzade, Toghrul"]
[Black "Baghirov, Orkhan"]
[Result "1-0"]
[ECO "C10"]
[WhiteElo "2322"]
[BlackElo "1473"]
[Annotator "ChessBase"]
[PlyCount "105"]
[EventDate "2021.03.14"]
[EventType "tourn"]
[EventCountry "AZE"]
[SourceTitle "playchess.com"]
[Source "ChessBase"]
[SourceQuality "1"]
[TimeControl "5400+30"]

1. e4 {[%emt 0:00:00]} e6 {[%emt 0:00:00]} 2. d4 {[%emt 0:00:00]} d5 {[%emt 0:00:00]} 3. Nd2 {[%emt 0:00:00]} dxe4 {[%emt 0:00:58]} 4. Nxe4 {[%emt 0:00:00]} Nd7 {[%emt 0:00:08]} 5. Nf3 {[%emt 0:00:12]} Ngf6 {[%emt 0:00:37]} 6. Nxf6+ {[%emt 0:00:05]} Nxf6 {[%emt 0:00:05]} 7. g3 {[%emt 0:00:09]} b6 {[%emt 0:02:54]} 8. Bg2 {[%emt 0:00:13]} Bb7 {[%emt 0:00:32]} 9. O-O {[%emt 0:00:08]} Bd6 {[%emt 0:01:38]} 10. c4 {[%emt 0:00:32]} O-O {[%emt 0:01:24]} 11. b3 {[%emt 0:00:23]} Qe7 {[%emt 0:02:18]} 12. Qe2 {[%emt 0:02:33]} Rfe8 13. Bb2 {[%emt 0:01:05]} Ba3 {[%emt 0:10:08]} 14. Ne5 {[%emt 0:03:30]} Bxg2 {[%emt 0:03:03]} 15. Kxg2 {[%emt 0:00:04]} Bxb2 {[%emt 0:00:15]} 16. Qxb2 {[%emt 0:00:04]} Nd7 {[%emt 0:01:51]} 17. Nf3 {[%emt 0:00:17]} Rad8 {[%emt 0:07:00]} 18. Rad1 {[%emt 0:01:05]} c5 {[%emt 0:04:59]} 19. Qa3 {[%emt 0:02:08]} a5 {[%emt 0:06:09]} 20. Rfe1 {[%emt 0:04:45]} Kf8 {[%emt 0:05:28]} 21. d5 {[%emt 0:02:42]} Qf6 {[%emt 0:02:09]} 22. dxe6 {[%emt 0:02:45]} Rxe6 {[%emt 0:00:22]} 23. Rxe6 {[%emt 0:00:38]} Qxe6 {[%emt 0:00:07]} 24. Qc1 {[%emt 0:04:55]} Re8 {[%emt 0:09:47]} 25. Qf4 {[%emt 0:01:07]} Ne5 {[%emt 0:03:46]} 26. Nxe5 {[%emt 0:01:56]} Qxe5 {[%emt 0:00:10]} 27. Qxe5 {[%emt 0:00:05]} Rxe5 {[%emt 0:00:01]} 28. Rd6 {[%emt 0:00:08]} Re6 {[%emt 0:00:16]} 29. Rxe6 {[%emt 0:00:06]} fxe6 {[%emt 0:00:01]} 30. Kf3 {[%emt 0:00:11]} Ke7 {[%emt 0:10:19]} 31. Ke4 {[%emt 0:00:05]} Kf6 {[%emt 0:12:36]} 32. f4 {[%emt 0:00:34]} h6 {[%emt 0:10:12]} 33. h3 {[%emt 0:00:34]} Kf7 {[%emt 0:05:20]} 34. Ke5 {[%emt 0:00:10]} Ke7 {[%emt 0:00:00]} 35. g4 {[%emt 0:00:26]} g5 {[%emt 0:01:41]} 36. f5 {[%emt 0:01:00]} exf5 {[%emt 0:00:34]} 37. Kxf5 {[%emt 0:00:08]} Kf7 {[%emt 0:00:13]} 38. a4 {[%emt 0:04:05]} Kg7 {[%emt 0:00:08]} 39. Ke6 {[%emt 0:00:04]} Kg6 {[%emt 0:00:33]} 40. Ke7 {[%emt 0:00:00]} h5 {[%emt 0:00:00]} 41. Ke6 {[%emt 0:00:00]} hxg4 {[%emt 0:00:00]} 42. hxg4 {[%emt 0:00:00]} Kg7 {[%emt 0:00:00]} 43. Kf5 {[%emt 0:00:00]} Kh6 {[%emt 0:00:00]} 44. Kf6 {[%emt 0:00:00]} Kh7 {[%emt 0:00:00]} 45. Kxg5 {[%emt 0:00:00]} Kg7 {[%emt 0:00:00]} 46. Kf5 {[%emt 0:00:00]} Kf7 {[%emt 0:00:00]} 47. g5 {[%emt 0:00:00]} Kg7 {[%emt 0:00:00]} 48. g6 {[%emt 0:00:00]} Kg8 {[%emt 0:00:00]} 49. Kf6 {[%emt 0:00:00]} Kf8 {[%emt 0:00:00]} 50. g7+ {[%emt 0:00:00]} Kg8 {[%emt 0:00:00]} 51. Kg6 {[%emt 0:00:00]} b5 {[%emt 0:00:00]} 52. cxb5 c4 53. b6 1-0

[Event "Nakhchivan Premium 2021"]
[Site "Nakhchivan"]
[Date "2021.03.28"]
[Round "7.3"]
[White "Mammadov, Sadig"]
[Black "Ahmadova, Yegana"]
[Result "1-0"]
[ECO "E65"]
[WhiteElo "2237"]
[BlackElo "1421"]
[Annotator "ChessBase"]
[PlyCount "151"]
[EventDate "2021.03.14"]
[EventType "tourn"]
[EventCountry "AZE"]
[SourceTitle "playchess.com"]
[Source "ChessBase"]
[SourceQuality "1"]
[TimeControl "5400+30"]

1. d4 {[%emt 0:00:00]} Nf6 {[%emt 0:00:00]} 2. Nf3 {[%emt 0:00:00]} g6 {[%emt 0:00:00]} 3. g3 {[%emt 0:00:00]} Bg7 {[%emt 0:00:00]} 4. Bg2 {[%emt 0:00:00]} O-O {[%emt 0:00:06]} 5. O-O {[%emt 0:00:04]} d6 {[%emt 0:00:45]} 6. c4 {[%emt 0:00:07]} c5 {[%emt 0:00:36]} 7. Nc3 {[%emt 0:01:27]} a6 {[%emt 0:01:34]} 8. a4 {[%emt 0:02:55]} Nc6 {[%emt 0:01:35]} 9. d5 {[%emt 0:03:29]} Nb4 {[%emt 0:00:40]} 10. e4 {[%emt 0:00:48]} Bg4 {[%emt 0:01:07]} 11. h3 {[%emt 0:01:07]} Bxf3 {[%emt 0:00:10]} 12. Bxf3 {[%emt 0:00:09]} Nd7 {[%emt 0:00:49]} 13. Bg2 {[%emt 0:00:56]} Qc7 {[%emt 0:15:31]} 14. Qe2 {[%emt 0:05:09]} e5 {[%emt 0:08:42]} 15. g4 {[%emt 0:06:00]} Qd8 {[%emt 0:07:14]} 16. Be3 {[%emt 0:01:29]} g5 {[%emt 0:04:30]} 17. Qd1 {[%emt 0:06:20]} Nb6 {[%emt 0:07:08]} 18. Qe2 {[%emt 0:02:38]} a5 {[%emt 0:02:57]} 19. Ra3 {[%emt 0:01:49]} Nc8 {[%emt 0:01:31]} 20. Bc1 {[%emt 0:03:13]} h6 {[%emt 0:02:27]} 21. h4 {[%emt 0:05:23]} f6 {[%emt 0:01:24]} 22. Nd1 {[%emt 0:02:47]} Ne7 {[%emt 0:03:20]} 23. Ne3 {[%emt 0:01:09]} Kf7 {[%emt 0:04:32]} 24. Bd2 {[%emt 0:04:35]} b6 {[%emt 0:01:58]} 25. Rc1 {[%emt 0:02:58]} Ke8 {[%emt 0:02:01]} 26. Qf3 {[%emt 0:10:05]} Kd7 {[%emt 0:02:41]} 27. Bf1 {[%emt 0:11:46]} Kc7 {[%emt 0:01:47]} 28. Bxb4 {[%emt 0:02:27]} axb4 {[%emt 0:01:26]} 29. Ra2 {[%emt 0:00:26]} Ra5 {[%emt 0:01:00]} 30. h5 {[%emt 0:04:04]} Qd7 {[%emt 0:01:21]} 31. Qd1 {[%emt 0:00:13]} Rfa8 {[%emt 0:00:42]} 32. Rca1 {[%emt 0:00:17]} Kd8 {[%emt 0:01:04]} 33. Be2 {[%emt 0:00:39]} Qe8 {[%emt 0:05:17]} 34. Qb3 {[%emt 0:00:32]} Qd7 {[%emt 0:01:03]} 35. Bd1 {[%emt 0:00:23]} Qc7 {[%emt 0:03:30]} 36. Nf1 {[%emt 0:01:50]} Qd7 {[%emt 0:00:42]} 37. Qd3 {[%emt 0:00:18]} Qc7 {[%emt 0:06:25]} 38. Nd2 {[%emt 0:00:12]} Kd7 {[%emt 0:02:01]} 39. Kg2 {[%emt 0:04:00]} Rf8 {[%emt 0:00:19]} 40. Nb3 {[%emt 0:00:00]} Qd8 {[%emt 0:00:00]} 41. Nd2 {[%emt 0:00:00]} Qc7 {[%emt 0:00:00]} 42. Nf1 {[%emt 0:00:00]} Kd8 {[%emt 0:00:00]} 43. Ne3 {[%emt 0:00:00]} Qd7 {[%emt 0:00:00]} 44. Nc2 {[%emt 0:00:00]} Qc7 {[%emt 0:00:00]} 45. Qb3 {[%emt 0:00:00]} Kd7 {[%emt 0:00:00]} 46. Be2 {[%emt 0:00:00]} Rfa8 {[%emt 0:00:00]} 47. Bd3 {[%emt 0:00:00]} Bf8 {[%emt 0:00:00]} 48. Kg3 {[%emt 0:00:00]} Bg7 {[%emt 0:00:00]} 49. Nxb4 {[%emt 0:00:00]} cxb4 {[%emt 0:00:00]} 50. Qxb4 {[%emt 0:00:00]} Qc5 {[%emt 0:00:00]} 51. Qd2 {[%emt 0:00:00]} Qd4 {[%emt 0:00:00]} 52. b4 {[%emt 0:00:00]} R5a7 {[%emt 0:00:00]} 53. Qc2 {[%emt 0:00:00]} b5 {[%emt 0:00:00]} 54. c5 {[%emt 0:00:00]} Qxb4 {[%emt 0:00:00]} 55. c6+ {[%emt 0:00:00]} Kc7 {[%emt 0:00:00]} 56. Rb2 {[%emt 0:00:00]} Qc5 {[%emt 0:00:00]} 57. Qxc5 {[%emt 0:08:59]} dxc5 {[%emt 0:00:00]} 58. Rxb5 {[%emt 0:00:08]} Nxc6 {[%emt 0:01:28]} 59. dxc6 {[%emt 0:00:34]} Rxa4 {[%emt 0:01:37]} 60. Rab1 {[%emt 0:05:57]} Kxc6 {[%emt 0:00:35]} 61. Rb6+ {[%emt 0:00:30]} Kc7 {[%emt 0:00:27]} 62. Rb7+ {[%emt 0:00:01]} Kc8 {[%emt 0:00:28]} 63. Rxg7 {[%emt 0:00:21]} Ra3 {[%emt 0:00:10]} 64. Rg8+ {[%emt 0:00:37]} Kc7 {[%emt 0:00:08]} 65. Rxa8 {[%emt 0:00:04]} Rxa8 {[%emt 0:00:04]} 66. Bc4 {[%emt 0:00:17]} Ra3+ {[%emt 0:02:07]} 67. Kg2 {[%emt 0:00:12]} Rc3 {[%emt 0:01:46]} 68. Bd5 {[%emt 0:00:06]} c4 {[%emt 0:00:28]} 69. Rb4 {[%emt 0:00:58]} Kd6 {[%emt 0:00:27]} 70. Rb6+ {[%emt 0:00:41]} Kc5 {[%emt 0:00:16]} 71. Rxf6 {[%emt 0:00:17]} Rc1 {[%emt 0:00:15]} 72. Rxh6 {[%emt 0:01:10]} c3 {[%emt 0:00:13]} 73. Rc6+ {[%emt 0:00:06]} Kd4 {[%emt 0:00:06]} 74. h6 {[%emt 0:00:07]} c2 {[%emt 0:01:11]} 75. Rxc2 {[%emt 0:01:32]} Rxc2 {[%emt 0:00:05]} 76. h7 {[%emt 0:00:02]} 1-0

[Event "Nakhchivan Premium 2021"]
[Site "Nakhchivan"]
[Date "2021.03.28"]
[Round "7.4"]
[White "Aliyev, Aykhan"]
[Black "Gasimov, Parviz"]
[Result "0-1"]
[ECO "A05"]
[WhiteElo "1683"]
[BlackElo "2337"]
[Annotator "NA"]
[PlyCount "100"]
[EventDate "2021.03.14"]
[EventType "tourn"]
[EventCountry "AZE"]
[SourceTitle "playchess.com"]
[Source "ChessBase"]
[SourceQuality "1"]
[TimeControl "5400+30"]

1. Nf3 {[%emt 0:00:30]} Nf6 {[%emt 0:00:07]} 2. c4 {[%emt 0:00:37]} b6 {[%emt 0:02:07]} 3. Nc3 {[%emt 0:02:35]} Bb7 {[%emt 0:00:05]} 4. d4 {[%emt 0:01:14]} e6 {[%emt 0:04:01]} 5. Bg5 {[%emt 0:02:16]} h6 {[%emt 0:01:48]} 6. Bxf6 {[%emt 0:01:49]} Qxf6 {[%emt 0:00:19]} 7. e4 {[%emt 0:00:13]} Bb4 {[%emt 0:01:50]} 8. Qd3 {[%emt 0:04:24]} Qf4 {[%emt 0:08:35]} 9. Nd2 {[%emt 0:02:28]} Nc6 {[%emt 0:05:00]} 10. a3 {[%emt 0:03:47]} Bxc3 {[%emt 0:02:41]} 11. bxc3 {[%emt 0:00:32]} e5 {[%emt 0:02:02]} 12. g3 {[%emt 0:05:44]} Qf6 {[%emt 0:00:39]} 13. Nb3 {[%emt 0:00:58]} a5 {[%emt 0:12:08]} 14. Rd1 {[%emt 0:02:02]} Qe7 {[%emt 0:08:35]} 15. Ra1 {[%emt 0:13:11]} (15. d5 $15 Nd8 16. a4) 15... exd4 {[%emt 0:03:48]} 16. Bg2 {[%emt 0:05:09]} dxc3 {[%emt 0:02:55]} 17. Qxc3 {[%emt 0:00:31]} Qe5 {[%emt 0:02:22]} 18. Rc1 {[%emt 0:01:36]} a4 {[%emt 0:02:35]} 19. Nd2 {[%emt 0:01:19]} Qxc3 $17 {[%emt 0:05:55]} 20. Rxc3 {[%emt 0:00:07]} Nd4 {[%emt 0:00:03]} 21. Rd3 {[%emt 0:03:39]} Ne6 {[%emt 0:00:34]} 22. O-O {[%emt 0:00:19]} Nc5 {[%emt 0:01:51]} 23. Re3 {[%emt 0:00:36]} O-O-O {[%emt 0:00:51]} 24. e5 {[%emt 0:02:42]} Bxg2 {[%emt 0:01:35]} 25. Kxg2 {[%emt 0:01:37]} Rhe8 {[%emt 0:02:06]} 26. f4 {[%emt 0:00:52]} d6 {[%emt 0:00:25]} 27. Nf3 {[%emt 0:03:15]} f6 {[%emt 0:01:22]} 28. Rfe1 {[%emt 0:02:18]} dxe5 {[%emt 0:01:16]} 29. fxe5 {[%emt 0:00:14]} fxe5 {[%emt 0:02:16]} 30. Nxe5 {[%emt 0:01:41]} Rxe5 {[%emt 0:00:26]} 31. Rxe5 {[%emt 0:00:28]} Nd3 {[%emt 0:00:05]} 32. Kh3 {[%emt 0:03:49]} Nxe1 {[%emt 0:05:48]} 33. Rxe1 {[%emt 0:00:07]} Rd3 {[%emt 0:00:09]} 34. c5 {[%emt 0:01:48]} bxc5 {[%emt 0:05:10]} 35. Kg4 {[%emt 0:00:44]} g6 {[%emt 0:01:29]} 36. Rc1 {[%emt 0:01:48]} Rxa3 {[%emt 0:01:12]} 37. Rxc5 {[%emt 0:00:10]} Rb3 {[%emt 0:00:09]} 38. Kf4 {[%emt 0:00:20]} Kb7 {[%emt 0:01:39]} 39. Ra5 {[%emt 0:00:25]} a3 {[%emt 0:00:29]} 40. Ke5 {[%emt 0:00:00]} Kb6 {[%emt 0:00:00]} 41. Ra8 {[%emt 0:00:00]} Rb5+ {[%emt 0:00:00]} 42. Kf6 {[%emt 0:00:00]} Ra5 {[%emt 0:00:00]} 43. Rb8+ {[%emt 0:00:00]} Kc5 {[%emt 0:00:00]} 44. Rb7 {[%emt 0:00:00]} a2 {[%emt 0:00:00]} 45. Rxc7+ {[%emt 0:00:00]} Kb4 {[%emt 0:00:00]} 46. Rc1 {[%emt 0:00:00]} a1=Q+ {[%emt 0:00:00]} 47. Rxa1 {[%emt 0:00:00]} Rxa1 {[%emt 0:00:00]} 48. Kxg6 {[%emt 0:00:00]} Ra6+ {[%emt 0:00:00]} 49. Kf5 {[%emt 0:00:00]} Kc5 {[%emt 0:00:00]} 50. g4 {[%emt 0:00:00]} Kd6 {[%emt 0:00:00]} 0-1

[Event "Nakhchivan Premium 2021"]
[Site "Nakhchivan"]
[Date "2021.03.28"]
[Round "7.5"]
[White "Garayev, Sadig"]
[Black "Seyid, Huseyn"]
[Result "1-0"]
[ECO "B12"]
[WhiteElo "1781"]
[BlackElo "1660"]
[Annotator "NA"]
[PlyCount "55"]
[EventDate "2021.03.14"]
[EventType "tourn"]
[EventCountry "AZE"]
[SourceTitle "playchess.com"]
[Source "ChessBase"]
[SourceQuality "1"]
[TimeControl "5400+30"]

1. e4 {[%emt 0:00:00]} c6 {[%emt 0:00:00]} 2. d4 {[%emt 0:00:08]} d5 {[%emt 0:00:00]} 3. e5 {[%emt 0:00:21]} c5 {[%emt 0:00:03]} 4. dxc5 {[%emt 0:01:19]} e6 {[%emt 0:00:49]} 5. Nf3 {[%emt 0:02:57]} Bxc5 {[%emt 0:01:08]} 6. Bd3 {[%emt 0:00:08]} Nc6 {[%emt 0:03:19]} 7. a3 {[%emt 0:02:45]} a5 {[%emt 0:10:32]} 8. O-O {[%emt 0:03:18]} Bd7 {[%emt 0:15:01]} 9. Qe2 {[%emt 0:06:21]} Nge7 {[%emt 0:03:35]} 10. h4 {[%emt 0:03:06]} h6 {[%emt 0:06:30]} 11. h5 {[%emt 0:02:33]} Qc7 {[%emt 0:03:16]} 12. Nc3 {[%emt 0:01:56]} Nd4 {[%emt 0:05:24]} 13. Nxd4 {[%emt 0:10:23]} Bxd4 {[%emt 0:00:01]} 14. Re1 {[%emt 0:04:18]} Ba7 {[%emt 0:25:06]} 15. Bd2 {[%emt 0:14:22]} g6 {[%emt 0:05:30]} 16. Nb5 {[%emt 0:12:05]} Bxb5 {[%emt 0:00:32]} 17. Bxb5+ {[%emt 0:00:01]} Nc6 {[%emt 0:00:49]} 18. c4 {[%emt 0:00:39]} dxc4 {[%emt 0:04:33]} 19. Rac1 {[%emt 0:01:33]} O-O-O {[%emt 0:04:10]} 20. Rxc4 {[%emt 0:02:49]} Qb6 {[%emt 0:01:54]} 21. Bxc6 {[%emt 0:00:39]} bxc6 {[%emt 0:00:58]} 22. Be3 {[%emt 0:00:18]} Qb7 {[%emt 0:01:39]} 23. Bxa7 {[%emt 0:00:40]} Qxa7 {[%emt 0:00:01]} 24. Rxc6+ {[%emt 0:00:24]} Kd7 {[%emt 0:00:35]} 25. Qf3 {[%emt 0:00:15]} Rh7 {[%emt 0:04:51]} 26. Rd1+ {[%emt 0:01:20]} Ke8 {[%emt 0:00:22]} 27. Rxd8+ {[%emt 0:00:06]} Kxd8 {[%emt 0:00:06]} 28. Qf6+ {[%emt 0:00:05]} 1-0

[Event "Nakhchivan Premium 2021"]
[Site "Nakhchivan"]
[Date "2021.03.28"]
[Round "7.6"]
[White "Babayeva, Nasrin"]
[Black "Ismayilov, Arturan"]
[Result "1-0"]
[ECO "A15"]
[WhiteElo "1564"]
[BlackElo "1663"]
[Annotator "NA"]
[PlyCount "103"]
[EventDate "2021.03.14"]
[EventType "tourn"]
[EventCountry "AZE"]
[SourceTitle "playchess.com"]
[Source "ChessBase"]
[SourceQuality "1"]
[TimeControl "5400+30"]

1. c4 {[%emt 0:00:00]} Nf6 {[%emt 0:00:00]} 2. g3 {[%emt 0:00:00]} c6 {[%emt 0:00:00]} 3. Bg2 {[%emt 0:00:00]} d5 {[%emt 0:00:00]} 4. Nf3 {[%emt 0:00:16]} g6 {[%emt 0:00:00]} 5. O-O {[%emt 0:00:45]} Bg7 {[%emt 0:00:03]} 6. d3 {[%emt 0:03:28]} O-O {[%emt 0:00:14]} 7. Bf4 {[%emt 0:03:26]} Nbd7 {[%emt 0:03:28]} 8. Qc1 {[%emt 0:04:01]} Re8 {[%emt 0:02:46]} 9. Bg5 {[%emt 0:08:15]} e5 {[%emt 0:13:15]} 10. cxd5 {[%emt 0:04:06]} cxd5 {[%emt 0:00:58]} 11. Nc3 {[%emt 0:02:11]} Qa5 {[%emt 0:03:39]} 12. Nd2 {[%emt 0:19:40]} h6 {[%emt 0:07:55]} 13. Nb3 {[%emt 0:00:20]} Qd8 {[%emt 0:00:38]} 14. Bxh6 {[%emt 0:00:15]} Nb6 {[%emt 0:01:25]} 15. Bxg7 {[%emt 0:05:55]} Kxg7 {[%emt 0:00:01]} 16. a4 {[%emt 0:03:47]} Be6 {[%emt 0:13:56]} 17. Nc5 {[%emt 0:04:02]} Rc8 {[%emt 0:03:11]} 18. Nxe6+ {[%emt 0:00:13]} Rxe6 {[%emt 0:04:33]} 19. Qg5 {[%emt 0:06:44]} d4 {[%emt 0:02:56]} 20. Nb5 {[%emt 0:11:34]} a6 {[%emt 0:06:30]} 21. Na3 {[%emt 0:00:37]} Nxa4 {[%emt 0:00:26]} 22. Bh3 {[%emt 0:00:36]} Qe7 {[%emt 0:02:58]} 23. Bxe6 {[%emt 0:00:31]} Qxe6 {[%emt 0:00:03]} 24. Nc4 {[%emt 0:07:42]} Rh8 {[%emt 0:03:41]} 25. f3 {[%emt 0:03:30]} b5 {[%emt 0:00:39]} 26. Qxe5 {[%emt 0:00:55]} Qd7 {[%emt 0:07:05]} 27. Qd6 {[%emt 0:04:01]} Re8 {[%emt 0:00:29]} 28. Qxd7 {[%emt 0:00:23]} Nxd7 {[%emt 0:00:01]} 29. Kf2 {[%emt 0:01:23]} Ndc5 {[%emt 0:00:01]} 30. b4 {[%emt 0:02:59]} Nd7 {[%emt 0:04:05]} 31. Nd2 {[%emt 0:01:33]} Ndb6 {[%emt 0:01:32]} 32. Nb3 {[%emt 0:00:21]} Rd8 {[%emt 0:00:26]} 33. Nc5 {[%emt 0:00:45]} Nxc5 {[%emt 0:01:34]} 34. bxc5 Na4 35. Rfc1 {[%emt 0:00:44]} Re8 {[%emt 0:00:39]} 36. Rc2 {[%emt 0:00:42]} a5 {[%emt 0:01:41]} 37. c6 {[%emt 0:00:37]} Rc8 {[%emt 0:00:31]} 38. e3 {[%emt 0:00:23]} Nc3 {[%emt 0:00:14]} 39. Rxa5 {[%emt 0:00:44]} b4 {[%emt 0:01:01]} 40. exd4 {[%emt 0:00:00]} Rxc6 {[%emt 0:00:00]} 41. Rc5 {[%emt 0:00:00]} Re6 {[%emt 0:00:00]} 42. R5xc3 {[%emt 0:00:00]} bxc3 {[%emt 0:00:00]} 43. Rxc3 {[%emt 0:00:00]} Kf6 {[%emt 0:00:00]} 44. d5 {[%emt 0:00:00]} Re8 {[%emt 0:00:00]} 45. d4 {[%emt 0:00:00]} Kf5 {[%emt 0:00:00]} 46. Rc5 {[%emt 0:00:00]} Rh8 {[%emt 0:00:00]} 47. h4 {[%emt 0:00:00]} Rd8 {[%emt 0:00:00]} 48. g4+ {[%emt 0:00:00]} Kf4 {[%emt 0:00:00]} 49. Rc6 {[%emt 0:00:00]} f5 {[%emt 0:00:00]} 50. Rxg6 {[%emt 0:00:00]} Ra8 {[%emt 0:00:00]} 51. Re6 {[%emt 0:00:00]} Ra3 {[%emt 0:00:00]} 52. gxf5 {[%emt 0:00:00]} 1-0

[Event "Nakhchivan Premium 2021"]
[Site "Nakhchivan"]
[Date "2021.03.29"]
[Round "8.2"]
[White "Seyid, Huseyn"]
[Black "Babayeva, Nasrin"]
[Result "1-0"]
[ECO "C42"]
[WhiteElo "1660"]
[BlackElo "1564"]
[Annotator "NA RC"]
[PlyCount "55"]
[EventDate "2021.03.14"]
[EventType "tourn"]
[EventCountry "AZE"]
[SourceTitle "playchess.com"]
[Source "ChessBase"]
[SourceQuality "1"]
[TimeControl "5400+30"]

1. e4 {[%emt 0:00:00]} e5 {[%emt 0:00:00]} 2. Nf3 {[%emt 0:00:10]} Nf6 {[%emt 0:00:00]} 3. Nxe5 {[%emt 0:00:18]} d6 {[%emt 0:00:01]} 4. Nf3 {[%emt 0:00:02]} Nxe4 {[%emt 0:00:06]} 5. d4 {[%emt 0:00:01]} d5 {[%emt 0:01:01]} 6. Bd3 {[%emt 0:00:22]} Be7 {[%emt 0:01:07]} 7. O-O {[%emt 0:00:30]} Bg4 {[%emt 0:00:38]} 8. c4 {[%emt 0:02:38]} c6 {[%emt 0:01:01]} 9. Nc3 {[%emt 0:01:33]} Nxc3 {[%emt 0:02:38]} 10. bxc3 {[%emt 0:00:02]} O-O {[%emt 0:00:20]} 11. Bf4 {[%emt 0:03:18]} Bd6 {[%emt 0:04:20]} 12. Bxd6 {[%emt 0:00:23]} Bxf3 {[%emt 0:00:53]} 13. Qxf3 {[%emt 0:00:16]} Qxd6 {[%emt 0:00:03]} 14. c5 {[%emt 0:01:04]} Qh6 {[%emt 0:16:52]} 15. Rfb1 {[%emt 0:05:19]} b6 {[%emt 0:07:38]} 16. cxb6 {[%emt 0:02:28]} axb6 {[%emt 0:00:01]} 17. Rxb6 {[%emt 0:01:50]} Qd2 {[%emt 0:02:09]} 18. a4 {[%emt 0:11:04]} Nd7 {[%emt 0:09:04]} 19. Rxc6 {[%emt 0:01:45]} Nf6 {[%emt 0:00:34]} 20. a5 {[%emt 0:26:40]} Rfc8 {[%emt 0:16:33]} 21. Rxc8+ {[%emt 0:01:18]} Rxc8 {[%emt 0:00:02]} 22. a6 {[%emt 0:06:56]} Qxc3 {[%emt 0:01:06]} 23. Bxh7+ {[%emt 0:00:37]} Kxh7 {[%emt 0:00:31]} 24. Qxc3 {[%emt 0:00:04]} Rxc3 {[%emt 0:00:01]} 25. a7 {[%emt 0:00:02]} Rc8 {[%emt 0:00:27]} 26. a8=Q {[%emt 0:00:09]} Rxa8 {[%emt 0:00:02]} 27. Rxa8 {[%emt 0:00:01]} Kg6 {[%emt 0:01:00]} 28. f3 {[%emt 0:00:16]} 1-0